bitfinex-derivatives/quotes_SOLF0:USTF0_20250712
["timestamp","ask_amount","ask_price","bid_price","bid_amount"]
[1752332427063,6.2856,159.04,159.02,3.61]
[1752332427268,9.7254,159.05,159.02,9.8963]
[1752332427460,9.7254,159.05,159.02,6.2863]
[1752332427662,9.7254,159.05,159.04,3.61]
[1752332429665,6.2857,159.04,159.02,3.61]
[1752332429864,9.7257,159.04,159.03,3.61]
[1752332430662,6.2853,159.05,159.03,3.61]
[1752332430866,9.7253,159.05,159.04,3.61]
[1752332431065,3.44,159.05,159.04,3.61]
[1752332431265,6.2851,159.06,159.03,6.2858]
[1752332431465,9.7251,159.06,159.05,3.61]
[1752332435771,3.44,159.05,159.01,3.61]
[1752332435970,3.44,159.05,159.0,6.287]
[1752332435971,3.44,159.04,159.0,6.287]
[1752332436168,3.44,159.02,159.01,3.61]
[1752332436371,3.44,159.04,159.01,3.61]
[1752332436570,3.44,159.04,159.02,3.61]
[1752332436571,9.7258,159.04,159.02,3.61]
[1752332436869,3.44,159.04,159.02,3.61]
[1752332437170,3.44,159.04,159.03,3.61]
[1752332437964,9.7256,159.04,159.03,3.61]
[1752332438169,3.09449428,159.05,159.0,6.287]
[1752332438377,3.44,159.03,159.02,3.61]
[1752332439170,9.726,159.03,159.02,3.61]
[1752332441674,3.09449428,159.05,159.02,3.61]
[1752332441871,3.44,159.04,158.99,3.61]
[1752332442271,6.2862,159.03,159.0,6.287]
[1752332442468,6.2862,159.03,159.01,3.61]
[1752332442976,3.44,159.04,159.01,3.61]
[1752332443472,6.2863,159.03,159.02,3.61]
[1752332443870,9.7258,159.04,159.02,3.61]
[1752332444073,6.2858,159.04,159.02,3.61]
[1752332444777,6.286,159.03,159.02,3.61]
[1752332446772,6.2858,159.04,159.02,3.61]
[1752332446973,6.2858,159.04,159.03,3.34]
[1752332449873,3.41,159.07,159.03,3.34]
[1752332450080,183.14,159.09,159.03,3.34]
[1752332450081,3.09449428,159.1,159.03,3.34]
[1752332450377,3.41,159.09,159.03,3.34]
[1752332450676,3.41,159.1,159.05,3.34]
[1752332450881,3.41,159.09,159.05,3.34]
[1752332451380,6.2841,159.08,159.07,3.34]
[1752332451579,3.41,159.09,159.07,3.34]
[1752332451775,9.6938,159.09,159.07,3.34]
[1752332451981,546.15449428,159.12,159.07,3.34]
[1752332451982,3.41,159.11,159.08,3.34]
[1752332452480,6.2836,159.1,159.08,3.34]
[1752332454579,3.41,159.11,159.09,3.34]
[1752332454781,3.41,159.1,159.07,3.34]
[1752332455173,9.6934,159.1,159.07,9.6244]
[1752332455374,9.6934,159.1,159.08,3.34]
[1752332456681,6.2834,159.1,159.08,3.34]
[1752332457174,9.6934,159.1,159.08,3.34]
[1752332457681,6.2836,159.09,159.08,3.34]
[1752332458278,3.41,159.11,159.04,3.34]
[1752332458479,3.09449428,159.08,159.04,3.34]
[1752332458680,3.41,159.08,159.04,3.34]
[1752332458880,6.2844,159.08,159.06,3.34]
[1752332459485,186.47,159.1,159.06,3.34]
[1752332459982,192.7534,159.1,159.07,6.2844]
[1752332460180,6.2834,159.1,159.08,3.34]
[1752332460385,186.13449428,159.13,159.08,3.34]
[1752332460586,186.13449428,159.13,159.09,3.34]
[1752332460587,3.41,159.1,159.09,3.34]
[1752332460788,9.6932,159.1,159.09,3.34]
[1752332461281,3.41,159.1,159.09,3.34]
[1752332461488,6.2831,159.11,159.09,3.34]
[1752332461790,0.04212655,159.11,159.09,3.34]
[1752332462485,0.04212655,159.11,159.07,5.27734299]
[1752332462786,0.04212655,159.11,159.1,3.34]
[1752332462787,3.45212655,159.11,159.1,3.34]
[1752332463182,0.04212655,159.11,159.1,3.34]
[1752332463789,6.32492655,159.11,159.1,3.34]
[1752332464290,9.73492655,159.11,159.1,3.34]
[1752332465594,0.04212655,159.11,159.1,3.34]
[1752332467492,6.32492655,159.11,159.1,3.34]
[1752332468495,0.04212655,159.11,159.1,3.34]
[1752332469091,6.32492655,159.11,159.1,3.34]
[1752332471299,9.73492655,159.11,159.1,3.34]
[1752332471685,0.04212655,159.11,159.1,3.34]
[1752332472590,6.32492655,159.11,159.1,3.34]
[1752332472997,9.73492655,159.11,159.1,3.34]
[1752332473201,6.32492655,159.11,159.1,3.34]
[1752332474598,9.73492655,159.11,159.1,3.34]
[1752332475488,0.04212655,159.11,159.1,3.34]
[1752332475692,3.5,159.18,159.11,3.52]
[1752332475893,546.52,159.2,159.14,6.61449428]
[1752332476089,546.52,159.2,159.15,3.52]
[1752332476293,3.5,159.2,159.16,3.52]
[1752332476498,3.5,159.19,159.12,6.61449428]
[1752332476690,3.5,159.17,159.11,3.52]
[1752332476895,3.5,159.19,159.14,3.52]
[1752332477101,3.5,159.19,159.14,3.56661491]
[1752332477303,6.2805,159.17,159.15,3.52]
[1752332479203,6.2802,159.18,159.16,3.52]
[1752332479398,4.59346279,159.22,159.16,6.61449428]
[1752332479593,1.09346279,159.22,159.17,3.52]
[1752332479796,3.5,159.21,159.17,3.52]
[1752332480204,6.2793,159.2,159.19,3.52]
[1752332481100,9.7793,159.2,159.19,3.52]
[1752332481298,6.2797,159.19,159.18,0.0459787]
[1752332481506,9.7797,159.19,159.18,0.0459787]
[1752332484597,9.7797,159.19,159.18,3.5659787]
[1752332486203,6.2797,159.19,159.18,3.5659787]
[1752332486802,9.7797,159.19,159.18,3.5659787]
[1752332488403,6.2797,159.19,159.18,3.5659787]
[1752332490608,6.2795,159.2,159.18,3.5659787]
[1752332491205,6.2797,159.19,159.18,3.5659787]
[1752332492815,6.2794,159.2,159.18,3.5659787]
[1752332493116,4.59346279,159.22,159.18,3.5659787]
[1752332493314,3.5,159.21,159.18,3.5659787]
[1752332493715,6.279,159.21,159.18,3.5659787]
[1752332493911,3.09449428,159.21,159.18,0.0459787]
[1752332494118,3.5,159.2,159.18,0.0459787]
[1752332494410,6.2797,159.19,159.18,0.0459787]
[1752332494614,9.7797,159.19,159.18,0.0459787]
[1752332495217,3.09449428,159.2,159.18,0.0459787]
[1752332495419,3.09449428,159.2,159.18,3.5659787]
[1752332495921,1.09332537,159.25,159.18,3.5659787]
[1752332496223,3.09449428,159.26,159.19,3.52]
[1752332496516,6.2792,159.21,159.19,3.52]
[1752332500217,6.2792,159.21,159.19,9.7996]
[1752332500519,6.2792,159.21,159.2,3.52]
[1752332501519,6.2797,159.19,159.18,3.56297783]
[1752332508021,6.2797,159.19,159.12,5.27734299]
[1752332508022,3.09449428,159.19,159.12,3.55]
[1752332508319,3.09449428,159.15,159.08,8.37183727]
[1752332508521,6.2829,159.11,159.09,3.55]
[1752332509021,3.09449428,159.15,159.06,5.27734299]
[1752332509222,0.0442368,159.12,159.06,8.37183727]
[1752332509411,0.0442368,159.12,159.05,5.27734299]
[1752332509615,3.09449428,159.11,159.06,3.55]
[1752332511222,6.2837,159.09,159.06,6.2847]
[1752332511423,6.2837,159.09,159.07,3.55]
[1752332511824,6.283,159.11,159.07,3.55]
[1752332512127,0.0442368,159.12,159.11,3.55]
[1752332512514,0.0442368,159.12,159.11,9.8328]
[1752332512715,542.64,159.18,159.11,3.55]
[1752332512916,542.64,159.18,159.13,3.55]
[1752332513118,542.68,159.18,159.13,3.55]
[1752332513321,6.2807,159.17,159.14,3.55]
[1752332514121,6.2807,159.17,159.14,3.59479649]
[1752332514522,6.2807,159.17,159.14,9.87629649]
[1752332514718,6.281,159.16,159.15,3.55]
[1752332515824,6.2806,159.17,159.16,3.55]
[1752332517427,6.3206,159.17,159.16,3.55]
[1752332517627,6.281,159.16,159.14,3.59479649]
[1752332517924,6.281,159.16,159.15,3.55]
[1752332519926,182.88,159.19,159.15,3.55]
[1752332519927,182.92,159.19,159.15,3.55]
[1752332520126,0.04,159.18,159.14,0.04479649]
[1752332520324,182.88,159.19,159.16,3.55]
[1752332520522,182.92,159.19,159.16,3.55]
[1752332520720,6.2804,159.18,159.16,3.55]
[1752332521526,6.2799,159.19,159.16,3.55]
[1752332522424,6.2799,159.19,159.17,3.55]
[1752332522828,6.2799,159.19,159.18,3.55]
[1752332524728,6.2807,159.17,159.16,3.55]
[1752332524927,6.3207,159.17,159.16,3.55]
[1752332526227,6.2807,159.17,159.16,3.55]
[1752332526532,6.2802,159.18,159.16,3.55]
[1752332526927,0.04,159.2,159.16,9.8307]
[1752332527133,0.04,159.2,159.17,3.55]
[1752332527632,6.2801,159.18,159.17,3.55]
[1752332527834,0.04,159.2,159.17,3.55]
[1752332528735,6.2799,159.19,159.17,3.55]
[1752332530031,182.86,159.21,159.17,3.55]
[1752332530634,182.86,159.21,159.18,3.09449428]
[1752332530830,182.86,159.21,159.19,3.55]
[1752332531240,189.1392,159.21,159.19,3.55]
[1752332531534,182.86,159.21,159.19,3.55]
[1752332531735,6.2795,159.2,159.19,3.55]
[1752332531931,0.04,159.2,159.18,3.55]
[1752332532137,0.04,159.19,159.17,0.04630062]
[1752332532337,3.09449428,159.2,159.17,3.59630062]
[1752332532639,6.2801,159.18,159.17,3.59630062]
[1752332533235,6.2799,159.19,159.17,3.59630062]
[1752332533437,182.86,159.21,159.17,3.59630062]
[1752332533637,182.9,159.21,159.17,3.59630062]
[1752332533836,182.86,159.21,159.17,3.59630062]
[1752332534037,0.04,159.2,159.18,3.55]
[1752332535030,6.2797,159.19,159.18,3.55]
[1752332537339,6.2794,159.2,159.18,3.55]
[1752332538440,6.2797,159.19,159.18,3.55]
[1752332541841,6.2797,159.19,159.17,0.04630062]
[1752332541842,6.2801,159.18,159.17,0.04630062]
[1752332542046,6.2801,159.18,159.17,3.38630062]
[1752332547959,6.3201,159.18,159.17,3.38630062]
[1752332548256,6.3201,159.18,159.17,0.00275489]
[1752332552758,0.04,159.15,159.1,3.34]
[1752332552957,3.13449428,159.12,159.1,3.34]
[1752332553151,3.09449428,159.12,159.1,3.34]
[1752332553356,0.04,159.11,159.08,3.34]
[1752332553551,0.04,159.1,159.04,8.36053268]
[1752332553758,3.09449428,159.12,159.05,3.34]
[1752332554056,0.04517233,159.09,159.05,3.34]
[1752332554360,0.04517233,159.09,159.05,8.6060384]
[1752332554551,0.04517233,159.09,159.06,3.34]
[1752332554750,0.04517233,159.09,159.08,9.624]
[1752332554950,182.8,159.13,159.08,3.34]
[1752332555156,182.8,159.13,159.09,3.34]
[1752332556057,3.09449428,159.17,159.11,3.34]
[1752332556658,6.2815,159.15,159.13,3.34]
[1752332557059,6.2806,159.17,159.14,6.2814]
[1752332557261,6.2806,159.17,159.15,3.34]
[1752332557564,182.89,159.18,159.13,3.34]
[1752332557758,6.2809,159.16,159.14,3.34]
[1752332558159,182.89,159.18,159.14,3.34]
[1752332558358,6.2807,159.17,159.14,6.2814]
[1752332558563,6.2807,159.17,159.15,3.34]
[1752332559166,6.2809,159.16,159.15,3.34]
[1752332560165,6.3709,159.16,159.15,3.34]
[1752332560364,6.2815,159.15,159.12,6.32922719]
[1752332560565,6.2815,159.15,159.14,3.34]
[1752332564165,6.282,159.14,159.13,3.34]
[1752332564775,6.372,159.14,159.13,3.34]
[1752332565066,6.2821,159.13,159.12,3.43692719]
[1752332568065,6.2818,159.14,159.12,3.43692719]
[1752332568469,3.09449428,159.15,159.12,3.43692719]
[1752332568669,6.2821,159.13,159.12,3.43692719]
[1752332573275,9.44659428,159.13,159.12,0.04692719]
[1752332574678,9.44659428,159.13,159.12,3.43692719]
[1752332575079,6.3521,159.13,159.12,3.43692719]
[1752332576179,6.3521,159.13,159.12,0.04692719]
[1752332579473,6.3521,159.13,159.12,3.43692719]
[1752332579681,6.2821,159.13,159.12,3.43692719]
[1752332580175,6.2817,159.14,159.12,3.43692719]
[1752332580380,182.78,159.15,159.12,3.43692719]
[1752332580874,6.2819,159.14,159.12,3.43692719]
[1752332582782,189.0614,159.15,159.12,3.43692719]
[1752332582981,182.78,159.15,159.12,3.43692719]
[1752332583881,3.17449428,159.19,159.12,3.43692719]
[1752332584079,185.87449428,159.19,159.12,6.53142147]
[1752332584284,182.78,159.19,159.14,3.09449428]
[1752332584481,182.78,159.19,159.15,3.39]
[1752332584778,5.20913596,159.24,159.19,3.39]
[1752332584982,548.02913596,159.25,159.19,3.39]
[1752332585178,730.72913596,159.25,159.19,3.39]
[1752332585377,725.52,159.25,159.21,3.39]
[1752332585676,725.52,159.25,159.22,3.09449428]
[1752332585881,182.78,159.25,159.23,3.39]
[1752332586176,182.78,159.25,159.24,3.39]
[1752332587089,189.0573,159.25,159.24,3.39]
[1752332590583,6.2773,159.25,159.24,3.39]
[1752332590783,7.37025365,159.26,159.24,3.39]
[1752332591686,6.2773,159.25,159.24,3.39]
[1752332594588,6.277,159.26,159.24,3.39]
[1752332595781,6.2773,159.25,159.24,3.39]
[1752332596777,6.3573,159.25,159.24,3.39]
[1752332596980,6.2773,159.25,159.24,3.39]
[1752332598988,183.85303348,159.28,159.24,3.39]
[1752332599183,183.77303348,159.28,159.24,3.68]
[1752332599387,3.09449428,159.27,159.24,3.68]
[1752332599585,6.2773,159.25,159.24,3.68]
[1752332599783,3.09449428,159.25,159.23,0.03967372]
[1752332599984,0.08,159.24,159.23,0.03967372]
[1752332600293,6.2777,159.24,159.23,3.71967372]
[1752332602288,6.2775,159.25,159.23,3.71967372]
[1752332602486,182.62,159.27,159.23,3.71967372]
[1752332602886,182.7,159.27,159.23,3.71967372]
[1752332603182,0.08,159.26,159.23,3.71967372]
[1752332603487,6.2777,159.24,159.23,3.71967372]
[1752332605584,6.2774,159.25,159.23,3.71967372]
[1752332608189,6.2777,159.24,159.23,3.71967372]
[1752332608584,182.62,159.27,159.23,3.71967372]
[1752332608781,6.2776,159.25,159.23,3.71967372]
[1752332610191,6.2776,159.25,159.23,9.99777372]
[1752332610386,6.2776,159.25,159.24,3.68]
[1752332612495,6.2772,159.26,159.24,3.68]
[1752332613189,182.62,159.27,159.25,3.68]
[1752332613895,6.2769,159.26,159.25,3.68]
[1752332615093,182.62,159.27,159.25,3.68]
[1752332616086,6.2768,159.27,159.25,3.68]
[1752332617597,6.2769,159.26,159.25,3.68]
[1752332618395,6.3569,159.26,159.25,3.68]
[1752332618593,6.2769,159.26,159.25,3.68]
[1752332619699,6.2777,159.24,159.23,0.03967372]
[1752332620299,6.2777,159.24,159.23,3.71967372]
[1752332623296,9.45219428,159.24,159.23,3.71967372]
[1752332623498,6.2793,159.2,159.19,3.68]
[1752332623695,6.3593,159.2,159.19,3.68]
[1752332624098,6.2806,159.17,159.14,6.2815]
[1752332624596,6.2806,159.17,159.15,3.68]
[1752332625602,6.2806,159.17,159.15,9.9613]
[1752332625800,6.2806,159.17,159.16,3.32]
[1752332628095,6.3706,159.17,159.16,3.32]
[1752332632603,6.2806,159.17,159.16,3.32]
[1752332633408,542.63,159.23,159.16,3.32]
[1752332633605,542.63,159.23,159.18,3.09449428]
[1752332633606,542.54,159.23,159.18,3.09449428]
[1752332633806,0.09,159.26,159.2,3.09449428]
[1752332634004,182.54,159.25,159.22,3.32]
[1752332634505,6.2788,159.22,159.21,3.32]
[1752332636510,6.2788,159.22,159.16,3.09449428]
[1752332636511,3.18449428,159.22,159.17,3.32]
[1752332636708,0.09,159.21,159.17,3.32]
[1752332636909,182.54,159.2,159.17,3.32]
[1752332637708,6.28,159.19,159.17,3.32]
[1752332638117,6.2801,159.18,159.17,3.32]
[1752332638617,182.54,159.2,159.17,3.32]
[1752332639821,6.2801,159.18,159.17,3.32]
[1752332641619,6.2813,159.15,159.12,11.5483384]
[1752332641815,0.09,159.18,159.12,6.2823]
[1752332642018,3.18449428,159.18,159.12,6.2823]
[1752332642220,6.2812,159.16,159.13,3.32]
[1752332642719,3.09449428,159.16,159.1,5.2660384]
[1752332642922,3.09449428,159.16,159.14,3.32]
[1752332643122,3.09449428,159.16,159.15,3.32]
[1752332643322,9.37539428,159.16,159.15,3.32]
[1752332644126,0.09,159.15,159.11,3.32]
[1752332644315,3.09449428,159.12,159.11,3.32]
[1752332644519,9.37689428,159.12,159.11,3.32]
[1752332644921,9.46689428,159.12,159.11,3.32]
[1752332645925,9.37689428,159.12,159.11,3.32]
[1752332646524,9.46689428,159.12,159.11,3.32]
[1752332647824,9.37689428,159.12,159.11,3.32]
[1752332648025,3.09449428,159.16,159.11,3.32]
[1752332648227,185.65449428,159.16,159.11,3.32]
[1752332648423,3.09449428,159.16,159.11,3.32]
[1752332648627,6.2815,159.15,159.11,9.6027]
[1752332648822,6.2815,159.15,159.12,3.32]
[1752332649430,6.2817,159.14,159.12,3.32]
[1752332649932,185.76449428,159.16,159.12,3.32]
[1752332650227,3.18449428,159.14,159.07,3.32]
[1752332650434,3.09449428,159.12,159.07,3.32]
[1752332650633,6.2832,159.11,159.07,9.6043]
[1752332650832,6.2832,159.11,159.08,3.32]
[1752332651233,6.2832,159.11,159.09,3.32]
[1752332652631,6.2832,159.1,159.09,3.32]
[1752332654932,6.283,159.11,159.09,3.32]
[1752332657244,3.09449428,159.12,159.09,3.32]
[1752332657936,6.2832,159.1,159.09,3.32]
[1752332658739,6.285,159.06,159.05,3.62]
[1752332659336,9.37949428,159.06,159.05,3.62]
[1752332660031,3.16449428,159.06,158.98,119.29922547]
[1752332660237,3.09449428,159.04,158.99,3.62]
[1752332660431,3.09449428,159.04,159.01,3.62]
[1752332660740,3.09449428,159.04,158.96,3.09449428]
[1752332661038,3.16449428,159.04,159.01,3.62]
[1752332661251,3.09449428,159.02,158.97,3.62]
[1752332661440,0.07,159.01,158.98,6.2877]
[1752332661744,3.16449428,159.02,159.0,3.62]
[1752332661939,3.16449428,159.02,159.01,3.62]
[1752332662239,9.45109428,159.02,159.01,3.62]
[1752332662938,9.38109428,159.02,159.01,3.62]
[1752332663736,9.45109428,159.02,159.01,3.62]
[1752332664741,3.16449428,159.02,158.93,6.71449428]
[1752332664938,3.16449428,159.02,158.94,3.62]
[1752332665142,3.16449428,159.02,158.96,6.2884]
[1752332665143,6.2876,158.99,158.96,6.2884]
[1752332665334,3.09449428,159.0,158.97,3.62]
[1752332665837,3.09449428,158.98,158.91,3.62]
[1752332666341,6.3585,158.97,158.95,3.62]
[1752332666538,3.09449428,158.98,158.96,3.62]
[1752332666739,3.16449428,158.98,158.96,3.62]
[1752332667038,6.2883,158.97,158.96,3.62]
[1752332667238,0.07,158.96,158.94,3.62]
[1752332667441,0.07,158.95,158.94,3.62]
[1752332667744,3.09449428,158.96,158.95,3.62]
[1752332668447,9.45329428,158.96,158.95,3.62]
[1752332668945,6.2894,158.95,158.91,6.2906]
[1752332669141,6.2894,158.95,158.83,12.5874]
[1752332669142,3.17478721,158.92,158.85,3.62]
[1752332669347,0.07,158.94,158.85,3.62]
[1752332669541,3.17502422,158.95,158.87,3.62]
[1752332669746,3.10502422,158.93,158.87,3.62]
[1752332670437,543.1,158.98,158.91,3.62]
[1752332670647,543.1,158.98,158.93,3.62]
[1752332670849,543.1,158.98,158.93,6.72502422]
[1752332671048,543.1,158.98,158.94,3.62]
[1752332671247,543.1,158.98,158.91,3.10502422]
[1752332671442,0.07,158.96,158.92,3.62]
[1752332671945,3.10502422,158.97,158.93,3.62]
[1752332672152,3.10502422,158.97,158.83,5.2660384]
[1752332672352,0.07,158.96,158.88,3.10502422]
[1752332672651,3.10502422,158.95,158.89,3.62]
[1752332673051,3.17502422,158.95,158.89,3.62]
[1752332673551,6.2901,158.93,158.89,3.62]
[1752332673752,6.3601,158.93,158.89,3.62]
[1752332674154,6.3601,158.93,158.9,3.62]
[1752332674354,6.3601,158.93,158.91,3.62]
[1752332675049,6.3603,158.92,158.81,5.2660384]
[1752332675255,6.3603,158.92,158.86,3.62]
[1752332675555,6.3603,158.92,158.88,6.2916]
[1752332675753,6.2907,158.91,158.9,3.62]
[1752332676054,0.07,158.92,158.91,3.62]
[1752332676253,3.17502422,158.92,158.91,3.62]
[1752332676952,9.46532422,158.92,158.91,3.62]
[1752332677951,3.17502422,158.92,158.91,3.62]
[1752332678154,3.10502422,158.92,158.91,3.62]
[1752332678354,3.10502422,158.93,158.92,3.62]
[1752332678555,3.10502422,158.95,158.92,3.62]
[1752332678759,182.74,158.94,158.92,3.62]
[1752332679551,543.17,158.98,158.91,3.10502422]
[1752332679757,725.84,158.98,158.94,3.62]
[1752332680152,725.84,158.98,158.97,3.62]
[1752332680658,0.07,158.97,158.94,3.62]
[1752332680856,0.07,158.96,158.94,3.62]
[1752332681358,0.07,158.96,158.93,3.62]
[1752332681857,6.2893,158.95,158.93,3.62]
[1752332682063,182.74,158.94,158.93,3.62]
[1752332682650,189.0995,158.94,158.91,3.62]
[1752332682855,189.0995,158.94,158.92,3.62]
[1752332683260,189.0995,158.94,158.86,5.173133]
[1752332683261,189.0295,158.94,158.93,3.62]
[1752332684367,543.1,158.98,158.93,3.62]
[1752332684368,182.8,158.95,158.93,3.62]
[1752332684857,543.1,158.98,158.88,5.173133]
[1752332685062,182.82,158.97,158.91,3.56]
[1752332685757,182.82,158.97,158.95,6.2889]
[1752332685960,182.82,158.97,158.96,3.56]
[1752332686864,182.82,158.97,158.96,9.8487]
[1752332687058,182.82,158.97,158.96,6.2887]
[1752332687258,182.82,158.97,158.96,9.8487]
[1752332687758,182.78,158.97,158.96,3.56]
[1752332688565,182.78,158.97,158.96,9.8487]
[1752332688963,543.1,158.98,158.96,6.2887]
[1752332689159,543.1,158.98,158.97,3.56]
[1752332689364,732.1279,158.98,158.97,3.56]
[1752332690061,543.1,158.98,158.97,3.56]
[1752332690267,0.09,159.04,158.97,3.56]
[1752332690466,0.09,159.04,158.99,6.2873]
[1752332690669,6.2867,159.02,159.01,3.56]
[1752332691867,6.3767,159.02,159.01,3.56]
[1752332692259,6.2867,159.02,159.01,3.56]
[1752332698178,543.51,159.06,159.01,3.56]
[1752332698379,543.42,159.06,159.01,3.56]
[1752332698676,543.42,159.06,159.03,3.56]
[1752332699078,182.72,159.05,159.03,3.56]
[1752332699272,182.72,159.05,159.04,3.56]
[1752332699669,182.72,159.05,159.04,9.8455]
[1752332700073,182.72,159.05,159.04,3.56]
[1752332700778,182.72,159.05,159.04,9.8455]
[1752332701180,182.72,159.05,159.04,3.56]
[1752332702984,543.42,159.06,159.04,9.8454]
[1752332703176,0.09,159.1,159.05,3.56]
[1752332703376,3.18811067,159.12,159.07,6.2841]
[1752332703680,546.42811067,159.14,159.07,3.56]
[1752332703983,182.68,159.13,159.07,3.56]
[1752332704784,3.09811067,159.12,159.07,3.56]
[1752332704979,543.24,159.14,159.04,6.2854]
[1752332704980,6.2842,159.08,159.04,6.2854]
[1752332705182,182.7,159.07,159.05,3.56]
[1752332705784,3.18811067,159.12,159.05,3.56]
[1752332705984,182.68,159.11,159.05,3.56]
[1752332706179,6.2834,159.1,159.06,3.09811067]
[1752332706378,182.74,159.1,159.07,3.56]
[1752332706579,6.2838,159.09,159.07,3.56]
[1752332706780,182.74,159.1,159.07,3.56]
[1752332707175,189.0235,159.1,159.07,9.8443]
[1752332707379,182.74,159.1,159.08,3.56]
[1752332707582,0.09,159.13,159.08,3.56]
[1752332707782,6.2833,159.1,159.08,3.56]
[1752332707982,182.7,159.12,159.08,3.56]
[1752332708185,167.7,159.12,159.08,3.56]
[1752332708482,6.2832,159.1,159.08,3.56]
[1752332708785,167.79,159.12,159.08,3.56]
[1752332709189,6.2835,159.09,159.08,3.56]
[1752332709787,6.2833,159.1,159.08,3.56]
[1752332710785,543.24,159.14,159.07,3.56]
[1752332710989,182.74,159.13,159.09,3.56]
[1752332711287,182.74,159.13,159.11,3.56]
[1752332711988,6.2826,159.12,159.11,3.56]
[1752332712189,189.1426,159.12,159.11,3.56]
[1752332712487,5.16123017,159.19,159.11,3.56]
[1752332712679,5.25123017,159.19,159.11,3.56]
[1752332712884,6.2811,159.16,159.14,3.56]
[1752332713084,182.98,159.18,159.14,3.56]
[1752332713888,183.11176021,159.18,159.14,3.56]
[1752332714083,6.2811,159.16,159.14,3.56]
[1752332714592,183.02176021,159.18,159.14,3.56]
[1752332715186,6.281,159.16,159.14,3.56]
[1752332715892,183.02176021,159.18,159.14,3.56]
[1752332716087,183.02176021,159.18,159.14,6.2816]
[1752332716389,6.2808,159.16,159.15,3.49]
[1752332717287,6.2805,159.17,159.15,3.49]
[1752332718491,6.2808,159.16,159.15,3.49]
[1752332719798,6.2806,159.17,159.15,3.49]
[1752332720097,182.98,159.18,159.15,3.49]
[1752332720390,6.2808,159.16,159.15,3.49]
[1752332720595,182.98,159.18,159.15,3.49]
[1752332720997,6.2805,159.17,159.15,3.49]
[1752332721591,182.98,159.18,159.15,3.49]
[1752332721790,543.04,159.22,159.15,3.49]
[1752332721998,6.2793,159.2,159.15,3.49]
[1752332722792,182.86,159.21,159.15,3.49]
[1752332722995,0.09,159.19,159.1,5.16123017]
[1752332723193,0.09,159.19,159.11,3.49]
[1752332723399,6.281,159.16,159.13,6.2817]
[1752332723593,6.281,159.16,159.14,3.49]
[1752332723794,182.91,159.18,159.09,5.16123017]
[1752332723995,182.91,159.18,159.1,3.49]
[1752332724799,6.2814,159.15,159.13,3.49]
[1752332724997,0.09,159.17,159.13,3.49]
[1752332725299,6.2816,159.14,159.13,3.49]
[1752332725701,0.09,159.17,159.13,3.49]
[1752332725901,6.2813,159.15,159.13,3.49]
[1752332727495,6.2816,159.14,159.13,3.49]
[1752332727700,185.9446026,159.14,159.08,3.49]
[1752332728003,6.2834,159.1,159.08,3.49]